bitfinex-derivatives/quotes_SOLF0:USTF0_20250730
["timestamp","ask_amount","ask_price","bid_price","bid_amount"]
[1753839567276,3.94097122,181.32,181.24,3.15]
[1753839567570,5.5178,181.27,181.21,7.5703895]
[1753839567767,3.0,181.3,181.2,3.15]
[1753839568174,5.5175,181.28,181.22,5.5188]
[1753839568363,3.0,181.27,181.2,3.15]
[1753839569068,3.0,181.25,181.2,3.15]
[1753839569269,3.0,181.25,181.17,7.5703895]
[1753839569471,3.0,181.24,181.17,3.15]
[1753839569872,3.0,181.21,181.15,3.15]
[1753839570270,3.0,181.24,181.17,3.15]
[1753839570469,3.0,181.24,181.2,5.5193]
[1753839570673,5.518,181.26,181.22,3.15]
[1753839570875,3.0,181.28,181.2,3.15]
[1753839571468,3.0,181.24,181.2,3.15]
[1753839571773,3.0,181.24,181.17,3.15]
[1753839572071,5.5193,181.22,181.17,8.6704]
[1753839572277,3.0,181.2,181.14,3.15]
[1753839572575,8.5197,181.2,181.15,5.5209]
[1753839572770,3.0,181.24,181.16,4.4203895]
[1753839572970,3.0,181.24,181.17,3.15]
[1753839573567,3.0,181.21,181.15,3.15]
[1753839574477,3.0,181.21,181.18,5.52]
[1753839574671,3.0,181.22,181.19,3.15]
[1753839574879,3.0,181.21,181.19,3.15]
[1753839575069,3.0,181.2,181.17,3.15]
[1753839575274,3.0,181.2,181.18,3.15]
[1753839575579,3.0,181.2,181.19,3.15]
[1753839576374,3.0,181.24,181.16,3.15]
[1753839576973,3.0,181.22,181.14,4.4203895]
[1753839577174,3.0,181.22,181.13,490.5]
[1753839577378,3.0,181.22,181.14,3.15]
[1753839577579,3.0,181.2,181.15,5.5209]
[1753839577980,3.0,181.2,181.15,3.15]
[1753839578674,8.5198,181.2,181.15,3.15]
[1753839578879,3.0,181.19,181.15,3.15]
[1753839579079,7.4203895,181.19,181.11,3.15]
[1753839579280,3.0,181.18,181.11,3.15]
[1753839579481,3.0,181.17,181.11,3.15]
[1753839580682,3.0,181.17,181.08,3.15]
[1753839581281,5.5218,181.13,181.09,3.15]
[1753839581680,3.0,181.11,181.09,3.15]
[1753839582080,3.0,181.11,181.09,8.6729]
[1753839583188,3.0,181.14,181.06,3.15]
[1753839583385,3.0,181.12,181.06,3.15]
[1753839583690,3.0,181.1,181.06,3.15]
[1753839583880,3.0,181.09,181.06,3.15]
[1753839584079,3.0,181.12,181.05,3.15]
[1753839584585,8.5223,181.12,181.07,8.6733]
[1753839584782,3.0,181.11,181.08,3.15]
[1753839584980,3.0,181.09,181.08,3.15]
[1753839585180,3.0,181.09,181.04,124.2003895]
[1753839585387,3.0,181.11,181.05,3.15]
[1753839586383,4.4203895,181.15,181.05,3.15]
[1753839586585,8.522,181.13,181.08,5.5231]
[1753839586788,5.522,181.13,181.09,3.15]
[1753839587182,5.522,181.13,181.08,5.5231]
[1753839587379,5.5222,181.12,181.08,5.5231]
[1753839587584,3.0,181.1,181.08,8.6731]
[1753839587889,5.5221,181.12,181.06,3.15]
[1753839588192,3.0,181.1,181.06,3.15]
[1753839588384,3.0,181.1,181.08,3.15]
[1753839588785,3.0,181.1,181.06,2.71837118]
[1753839588986,3.0,181.1,181.09,3.15]
[1753839589186,3.0,181.13,181.09,3.15]
[1753839589387,3.0,181.12,181.1,3.15]
[1753839589593,3.0,181.14,181.07,3.15]
[1753839589789,3.0,181.09,181.07,8.6735]
[1753839589985,5.5226,181.11,181.07,3.15]
[1753839590185,3.0,181.08,181.07,3.15]
[1753839590389,3.0,181.08,181.06,8.24207118]
[1753839590586,3.0,181.12,181.05,119.7]
[1753839590986,3.0,181.12,181.05,125.2241]
[1753839591188,3.0,181.12,181.04,2.71837118]
[1753839591392,2.94,181.07,181.04,3.23]
[1753839591591,2.94,181.06,181.04,3.23]
[1753839592095,2.94,181.1,181.05,3.23]
[1753839592488,2.94,181.12,181.06,2.71837118]
[1753839592687,2.71837118,181.13,181.06,2.71837118]
[1753839593092,2.94,181.08,181.07,5.5235]
[1753839593290,5.5226,181.11,181.07,8.7535]
[1753839593498,2.71837118,181.15,181.08,3.23]
[1753839593996,2.94,181.14,181.06,2.71837118]
[1753839594192,2.94,181.14,181.06,5.94837118]
[1753839594388,5.5223,181.12,181.08,5.5233]
[1753839594898,2.94,181.11,181.08,5.5233]
[1753839595397,2.71837118,181.15,181.06,5.94837118]
[1753839595398,2.94,181.1,181.06,5.94837118]
[1753839595786,2.94,181.1,181.06,11.47207118]
[1753839596389,2.71837118,181.13,181.06,11.47207118]
[1753839596594,2.94,181.12,181.05,5.5241]
[1753839596794,5.5234,181.08,181.04,2.71837118]
[1753839596996,2.94,181.07,181.04,2.71837118]
[1753839597196,2.94,181.06,181.04,2.71837118]
[1753839597397,2.94,181.06,181.04,5.94837118]
[1753839597593,2.94,181.03,181.02,5.94837118]
[1753839597898,2.94,181.05,181.03,3.23]
[1753839598099,2.94,181.05,181.03,8.7545]
[1753839598698,2.94,181.05,181.04,5.5245]
[1753839598892,5.5233,181.08,181.04,8.7545]
[1753839599099,2.94,181.07,181.05,3.23]
[1753839599302,2.94,181.06,181.03,5.5247]
[1753839599600,2.94,181.05,181.04,3.23]
[1753839599904,2.94,181.05,181.03,8.7547]
[1753839600295,2.94,181.04,181.02,2.71837118]
[1753839600496,2.94,181.03,181.0,496.52837118]
[1753839600699,2.94,181.08,181.01,3.23]
[1753839601197,2.94,181.07,181.05,5.5242]
[1753839601400,2.71837118,181.15,181.06,2.71837118]
[1753839601599,2.94,181.09,181.08,3.23]
[1753839601997,2.94,181.09,181.08,8.7531]
[1753839602401,2.94,181.08,181.06,5.94837118]
[1753839602703,2.94,181.07,181.06,2.71837118]
[1753839603505,2.94,181.11,181.07,3.23]
[1753839603801,2.94,181.12,181.06,2.71837118]
[1753839604006,2.94,181.09,181.06,8.24227118]
[1753839604310,2.94,181.1,181.07,3.23]
[1753839604508,2.94,181.09,181.07,3.23]
[1753839605011,2.94,181.09,181.07,8.7534]
[1753839605304,2.71837118,181.15,181.04,119.62]
[1753839605305,2.94,181.14,181.08,2.71837118]
[1753839605507,2.94,181.14,181.09,3.23]
[1753839605703,5.5219,181.13,181.09,8.7529]
[1753839605909,2.94,181.12,181.09,8.7529]
[1753839606104,5.5219,181.13,181.09,8.7529]
[1753839606308,2.94,181.1,181.09,8.7529]
[1753839606507,2.94,181.14,181.09,3.23]
[1753839606816,2.94,181.13,181.12,3.23]
[1753839607003,2.94,181.13,181.11,2.71837118]
[1753839607208,2.94,181.12,181.11,11.47047118]
[1753839608013,2.94,181.12,181.11,8.24047118]
[1753839609512,2.94,181.12,181.11,11.47047118]
[1753839609710,2.94,181.13,181.12,8.752]
[1753839610217,2.94,181.13,181.12,3.23]
[1753839610604,2.94,181.13,181.12,8.7521]
[1753839612616,2.94,181.13,181.12,3.23]
[1753839612817,2.94,181.13,181.11,8.24067118]
[1753839612818,2.94,181.13,181.11,5.94837118]
[1753839613017,2.94,181.14,181.12,3.23]
[1753839613214,2.94,181.13,181.12,3.23]
[1753839613413,2.94,181.18,181.12,3.23]
[1753839613615,2.94,181.18,181.14,3.23]
[1753839613810,2.94,181.18,181.08,2.71837118]
[1753839613811,2.94,181.17,181.16,8.7508]
[1753839614020,2.71837118,181.23,181.16,3.23]
[1753839614320,2.94,181.2,181.17,3.23]
[1753839614522,2.94,181.22,181.17,3.23]
[1753839614713,2.94,181.22,181.18,5.52]
[1753839614917,2.94,181.22,181.18,3.23]
[1753839615311,2.94,181.22,181.17,2.71837118]
[1753839615518,2.94,181.22,181.17,5.94837118]
[1753839615820,2.94,181.2,181.18,3.23]
[1753839616214,2.94,181.2,181.19,8.7499]
[1753839616619,2.94,181.19,181.17,5.94837118]
[1753839617015,2.94,181.21,181.18,3.23]
[1753839617219,2.94,181.21,181.2,3.23]
[1753839618018,2.71837118,181.26,181.2,3.23]
[1753839618218,124.0,181.27,181.2,3.23]
[1753839618219,2.94,181.24,181.2,3.23]
[1753839618616,2.94,181.24,181.21,2.71837118]
[1753839618814,2.94,181.29,181.22,3.23]
[1753839619019,5.5177,181.27,181.23,8.23687118]
[1753839619218,2.94,181.26,181.23,11.46687118]
[1753839619420,2.94,181.25,181.23,11.46687118]
[1753839619920,2.94,181.27,181.24,5.5184]
[1753839620222,2.94,181.27,181.26,3.23]
[1753839620813,2.94,181.27,181.17,2.71837118]
[1753839621013,5.5172,181.28,181.25,5.94837118]
[1753839621313,2.94,181.26,181.25,5.94837118]
[1753839621715,3.21,181.28,181.26,2.99]
[1753839622222,3.21,181.27,181.26,2.99]
[1753839622622,3.21,181.27,181.25,2.71837118]
[1753839622820,3.21,181.27,181.25,5.70837118]
[1753839623020,3.21,181.27,181.25,2.71837118]
[1753839623219,3.21,181.29,181.26,2.99]
[1753839623417,3.21,181.36,181.29,2.99]
[1753839623617,3.21,181.34,181.29,5.70837118]
[1753839624023,5.5159,181.33,181.29,11.22507118]
[1753839624523,3.21,181.34,181.27,5.70837118]
[1753839625324,5.516,181.32,181.27,11.22577118]
[1753839625624,3.21,181.31,181.25,2.71837118]
[1753839626023,5.92837118,181.31,181.24,2.99]
[1753839626224,3.21,181.3,181.24,2.99]
[1753839626825,3.21,181.28,181.22,2.71837118]
[1753839627219,3.21,181.28,181.24,2.71837118]
[1753839627524,5.5161,181.32,181.27,2.99]
[1753839627728,3.21,181.29,181.27,2.99]
[1753839628423,3.21,181.28,181.27,2.99]
[1753839628619,3.21,181.3,181.27,2.99]
[1753839628819,3.21,181.29,181.27,8.5075]
[1753839629123,3.21,181.32,181.26,2.71837118]
[1753839629320,3.21,181.27,181.22,5.70837118]
[1753839629919,8.7276,181.27,181.23,8.5087]
[1753839630220,3.21,181.27,181.23,8.5087]
[1753839631026,3.21,181.26,181.24,8.5084]
[1753839631224,3.21,181.26,181.25,2.99]
[1753839631617,3.21,181.28,181.25,8.5081]
[1753839631821,3.21,181.28,181.26,2.99]
[1753839632019,3.21,181.27,181.26,2.99]
[1753839632328,3.21,181.26,181.25,5.5181]
[1753839632824,5.5166,181.3,181.25,8.5081]
[1753839633023,3.21,181.27,181.25,8.5081]
[1753839633233,3.21,181.29,181.26,8.5077]
[1753839633526,3.21,181.28,181.26,8.5077]
[1753839634325,3.21,181.34,181.27,5.5175]
[1753839634526,3.21,181.34,181.27,2.99]
[1753839634730,7.63211029,181.34,181.25,4.42211029]
[1753839634932,3.21,181.33,181.26,5.5177]
[1753839635120,5.5165,181.31,181.26,5.5177]
[1753839635325,3.21,181.3,181.26,5.5177]
[1753839635932,3.21,181.3,181.26,8.5077]
[1753839636328,3.21,181.3,181.27,8.5074]
[1753839636628,3.21,181.29,181.27,8.5074]
[1753839637028,3.21,181.29,181.27,2.99]
[1753839637233,5.516,181.32,181.29,2.99]
[1753839637532,3.21,181.3,181.29,2.99]
[1753839637832,5.516,181.32,181.28,8.5072]
[1753839638034,5.516,181.32,181.27,5.5174]
[1753839638233,3.21,181.28,181.27,8.5074]
[1753839638530,3.21,181.31,181.27,2.99]
[1753839639324,3.21,181.31,181.28,5.5172]
[1753839639524,3.21,181.3,181.27,2.99]
[1753839639725,3.21,181.3,181.25,2.99]
[1753839640033,8.7268,181.3,181.25,2.99]
[1753839640231,3.21,181.29,181.25,2.99]
[1753839640734,3.21,181.29,181.26,5.5178]
[1753839641340,3.21,181.25,181.21,7.41211029]
[1753839641537,4.42211029,181.3,181.21,7.41211029]
[1753839641736,3.21,181.29,181.21,7.41211029]
[1753839641930,5.5176,181.27,181.21,7.41211029]
[1753839642125,3.21,181.26,181.22,2.99]
[1753839643036,3.21,181.25,181.22,8.5088]
[1753839643435,3.21,181.24,181.22,2.99]
[1753839643737,3.21,181.24,181.23,2.99]
[1753839644335,3.21,181.24,181.23,8.5087]
[1753839645637,3.21,181.24,181.23,5.5187]
[1753839645837,3.21,181.24,181.22,8.5089]
[1753839646435,3.21,181.26,181.25,2.99]
[1753839646843,3.21,181.25,181.24,5.5182]
[1753839647842,3.21,181.3,181.24,4.42211029]
[1753839648037,3.21,181.3,181.26,2.99]
[1753839648531,3.21,181.33,181.25,2.99]
[1753839648838,3.21,181.33,181.26,4.42211029]
[1753839649140,119.5,181.38,181.28,4.42211029]
[1753839649338,3.21,181.36,181.29,2.99]
[1753839650139,5.5153,181.35,181.31,5.516]
[1753839650340,3.21,181.34,181.31,5.516]
[1753839650541,3.21,181.36,181.29,2.99]
[1753839650743,5.515,181.36,181.31,5.5161]
[1753839650938,3.21,181.34,181.32,2.99]
[1753839651843,3.1,181.35,181.33,3.16]
[1753839653341,3.1,181.35,181.34,3.16]
[1753839655241,3.1,181.37,181.33,5.5154]
[1753839655439,2.71126973,181.4,181.33,5.5154]
[1753839655440,3.1,181.39,181.33,5.5154]
[1753839655636,3.1,181.39,181.33,8.6754]
[1753839655834,5.5145,181.37,181.33,3.16]
[1753839656238,3.1,181.35,181.33,3.16]
[1753839656746,3.1,181.35,181.33,8.6756]
[1753839656944,3.1,181.35,181.34,3.16]
[1753839657445,124.0,181.42,181.35,3.16]
[1753839657446,2.71126973,181.41,181.35,3.16]
[1753839657644,3.95282607,181.4,181.36,3.16]
[1753839657851,3.1,181.4,181.36,3.16]
[1753839658048,3.1,181.39,181.36,3.16]
[1753839658350,3.1,181.38,181.35,5.5148]
[1753839658536,3.1,181.38,181.36,3.16]
[1753839658743,3.1,181.38,181.35,8.6748]
[1753839658947,3.1,181.37,181.36,3.16]
[1753839659348,3.1,181.39,181.36,3.16]
[1753839659745,3.1,181.38,181.36,3.16]
[1753839660046,3.1,181.4,181.37,3.16]
[1753839660245,3.1,181.4,181.38,3.16]
[1753839660550,3.1,181.38,181.36,5.87126973]
[1753839660751,3.1,181.37,181.36,5.87126973]
[1753839660947,3.1,181.37,181.35,3.16]
[1753839661149,3.1,181.39,181.36,3.16]
[1753839661348,3.1,181.38,181.37,3.16]
[1753839661552,2.71126973,181.42,181.33,2.71126973]
[1753839661749,5.81126973,181.4,181.33,2.71126973]
[1753839662053,124.13399661,181.44,181.32,3.16]
[1753839662054,3.1,181.37,181.32,3.16]
[1753839662450,3.1,181.37,181.33,3.16]
[1753839662651,3.1,181.39,181.33,3.16]
[1753839662852,2.71126973,181.36,181.31,3.16]
[1753839663054,2.71126973,181.34,181.28,3.16]
[1753839663255,3.1,181.33,181.29,3.16]
[1753839663453,3.1,181.33,181.3,3.16]
[1753839663651,3.1,181.33,181.27,3.16]
[1753839663853,3.1,181.29,181.22,5.87126973]
[1753839664051,5.5178,181.27,181.22,8.23026973]
[1753839664258,3.1,181.25,181.23,3.16]
[1753839664558,5.5178,181.27,181.23,3.16]
[1753839664559,3.1,181.24,181.23,3.16]
[1753839665951,3.1,181.27,181.23,3.16]
[1753839666152,3.1,181.26,181.22,3.16]
[1753839666356,5.5181,181.26,181.21,8.6793]
[1753839666550,3.1,181.25,181.21,8.6793]
[1753839666751,5.5181,181.26,181.21,8.6793]
[1753839667057,3.1,181.23,181.22,3.16]
[1753839667256,3.1,181.23,181.22,8.6791]
[1753839667446,3.1,181.25,181.22,8.6791]
[1753839667650,3.1,181.24,181.22,8.6791]
[1753839669156,3.1,181.25,181.21,5.5193]
[1753839669451,3.1,181.24,181.21,5.5193]
[1753839669653,3.1,181.23,181.22,3.16]
[1753839669850,3.1,181.23,181.22,8.679]
[1753839670050,2.71126973,181.27,181.22,3.16]
[1753839670051,3.1,181.24,181.22,3.16]
[1753839670450,3.1,181.26,181.24,8.6784]
[1753839670751,3.1,181.26,181.25,3.16]
[1753839671251,2.71126973,181.3,181.23,8.6787]
[1753839671554,3.1,181.28,181.21,3.16]
[1753839671755,3.1,181.27,181.2,8.23066973]
[1753839672354,5.5182,181.25,181.2,8.23066973]
[1753839672554,3.1,181.24,181.21,5.5193]
[1753839672952,3.1,181.24,181.2,5.87126973]
[1753839674058,3.1,181.24,181.2,11.39086973]
[1753839674658,5.5179,181.26,181.21,5.5193]
[1753839674850,3.1,181.25,181.22,3.16]
[1753839675051,3.1,181.25,181.18,3.16]
[1753839675564,3.1,181.21,181.19,3.16]
[1753839676356,3.1,181.21,181.2,3.16]
[1753839676752,3.1,181.23,181.2,3.16]
[1753839676958,3.1,181.23,181.21,5.5193]
[1753839677160,3.1,181.23,181.22,3.16]
[1753839677862,3.1,181.26,181.23,3.16]
[1753839678156,3.1,181.24,181.23,3.16]
[1753839678356,3.1,181.24,181.21,5.87126973]
[1753839678555,3.1,181.23,181.22,3.16]
[1753839679159,3.1,181.29,181.22,3.16]
[1753839679561,5.5176,181.27,181.23,5.5185]
[1753839679759,3.1,181.26,181.24,3.16]
[1753839679956,3.1,181.25,181.24,3.16]
[1753839680351,3.1,181.25,181.23,5.5185]
[1753839680556,3.1,181.25,181.22,11.39026973]
[1753839681456,3.1,181.25,181.22,2.71126973]
[1753839681861,3.19,181.24,181.22,2.71126973]
[1753839682163,3.19,181.29,181.23,3.23]
[1753839682469,8.7072,181.29,181.26,3.23]
[1753839682662,3.19,181.27,181.26,3.23]
[1753839684265,5.5164,181.31,181.26,5.5175]
[1753839684465,3.19,181.28,181.27,3.23]
[1753839684656,3.19,181.27,181.26,5.5175]
[1753839684859,3.19,181.27,181.26,3.23]
[1753839687470,3.19,181.28,181.25,8.22936973]
[1753839688169,3.19,181.28,181.25,11.45936973]
[1753839689167,3.19,181.28,181.25,2.71126973]
[1753839689366,3.19,181.27,181.21,2.71126973]
[1753839689772,5.518,181.26,181.21,8.23036973]
[1753839689966,3.19,181.25,181.21,11.46036973]
[1753839690366,5.5182,181.25,181.21,11.46036973]
[1753839690567,3.19,181.24,181.21,11.46036973]
[1753839691171,3.19,181.23,181.21,11.46036973]
[1753839691370,3.19,181.22,181.21,11.46036973]
[1753839692373,3.19,181.23,181.22,3.23]
[1753839694072,3.19,181.23,181.22,8.7491]
[1753839694271,2.71126973,181.31,181.22,3.23]
[1753839694473,3.19,181.27,181.23,5.94126973]
[1753839694676,3.19,181.26,181.24,8.7484]
[1753839694981,3.19,181.27,181.24,8.7484]
[1753839695381,5.5175,181.28,181.25,5.5181]
[1753839695680,3.19,181.26,181.25,5.5181]
[1753839696379,2.71126973,181.33,181.26,5.5178]
[1753839696677,3.19,181.27,181.26,8.7478]
[1753839697379,3.19,181.3,181.27,5.5175]
[1753839697575,3.19,181.29,181.27,5.5175]
[1753839697777,3.19,181.28,181.27,5.5175]
[1753839699379,3.19,181.28,181.15,9.21058778]
[1753839699380,5.90126973,181.28,181.16,3.23]
[1753839699578,3.19,181.27,181.2,3.23]
[1753839699979,3.19,181.26,181.22,3.23]
[1753839700582,3.19,181.26,181.25,3.23]
[1753839701078,3.19,181.27,181.26,3.23]
[1753839702183,3.19,181.27,181.25,5.518]
[1753839702383,3.19,181.26,181.25,3.23]
[1753839702982,3.19,181.28,181.22,3.23]
[1753839703485,3.19,181.27,181.23,2.71126973]
[1753839703680,3.19,181.27,181.24,3.23]
[1753839704079,3.19,181.27,181.26,8.7478]
[1753839705885,3.19,181.34,181.27,3.23]
[1753839706084,3.19,181.34,181.3,3.23]
[1753839706288,3.19,181.32,181.31,3.23]
[1753839706686,2.71126973,181.37,181.29,2.71126973]
[1753839706889,3.19,181.33,181.32,3.23]
[1753839707083,5.5152,181.35,181.32,3.23]
[1753839707084,3.19,181.35,181.32,3.23]
[1753839707287,3.19,181.34,181.33,3.23]
[1753839709281,3.19,181.34,181.25,3.23]
[1753839709487,3.19,181.29,181.25,3.23]
[1753839710093,3.19,181.29,181.26,3.23]
[1753839710094,3.19,181.28,181.26,3.23]
[1753839710292,3.19,181.27,181.26,3.23]
[1753839710690,2.71126973,181.32,181.24,2.71126973]
[1753839710987,3.19,181.28,181.27,3.23]
[1753839711989,3.13,181.29,181.28,3.1]
[1753839712690,3.13,181.31,181.28,3.1]
[1753839713598,3.13,181.31,181.29,5.5167]
[1753839713891,3.13,181.31,181.3,3.1]
[1753839714091,3.13,181.38,181.33,3.1]
[1753839714302,3.13,181.36,181.34,3.1]
[1753839714589,3.13,181.35,181.34,3.1]
[1753839715192,3.13,181.36,181.35,3.1]
[1753839715790,3.13,181.38,181.34,2.71126973]
[1753839715991,3.13,181.38,181.35,3.1]
[1753839716685,5.5139,181.39,181.38,3.1]
[1753839716686,3.13,181.39,181.38,3.1]
[1753839716998,3.13,181.4,181.39,3.1]
[1753839717593,3.13,181.39,181.37,3.1]
[1753839718297,3.13,181.38,181.37,3.1]
[1753839719699,3.13,181.38,181.26,11.92185751]
[1753839719700,3.13,181.38,181.32,3.1]
[1753839719996,3.13,181.3,181.28,3.1]
[1753839720699,3.13,181.29,181.28,3.1]
[1753839720898,3.13,181.29,181.24,2.71126973]
[1753839721096,3.13,181.29,181.25,3.1]
[1753839721599,3.13,181.3,181.27,3.1]
[1753839721791,3.13,181.33,181.29,3.1]
[1753839721992,8.6457,181.33,181.29,3.1]
[1753839722398,3.13,181.32,181.31,3.1]
[1753839722594,3.13,181.3,181.29,3.1]
[1753839723391,3.13,181.34,181.27,3.1]
[1753839723696,3.13,181.32,181.25,3.1]
[1753839723892,124.0,181.36,181.25,3.1]
[1753839723893,3.13,181.26,181.25,3.1]
[1753839725197,5.5178,181.27,181.25,3.1]
[1753839725400,8.6478,181.27,181.26,3.1]
[1753839728204,5.518,181.26,181.22,9.9386923]
[1753839728402,8.648,181.26,181.25,3.1]
[1753839729606,3.13,181.26,181.25,3.1]
[1753839730103,8.6478,181.26,181.25,3.1]
[1753839730306,3.13,181.26,181.25,3.1]
[1753839730500,3.13,181.28,181.26,3.1]
[1753839730700,8.6473,181.28,181.26,3.1]
[1753839730905,3.13,181.27,181.26,3.1]
[1753839737710,8.6475,181.27,181.26,3.1]
[1753839738807,3.13,181.24,181.23,3.1]
[1753839739805,3.13,181.25,181.24,3.1]
[1753839740006,5.5176,181.27,181.24,3.1]
[1753839740208,3.13,181.26,181.25,3.1]
[1753839741112,5.5167,181.3,181.25,3.1]
[1753839741308,8.6867,181.3,181.26,2.99]
[1753839741711,124.0,181.36,181.27,4.4196923]
[1753839742016,3.17,181.35,181.28,2.99]
[1753839742713,8.6857,181.33,181.28,2.99]
[1753839742914,8.6857,181.33,181.3,2.99]
[1753839743304,8.6857,181.33,181.29,2.71166417]
[1753839743512,3.17,181.32,181.31,2.99]
[1753839743915,2.71166417,181.37,181.31,2.99]
[1753839744214,3.17,181.36,181.3,5.70166417]
[1753839744409,3.17,181.36,181.32,2.99]
[1753839744613,3.17,181.33,181.32,2.99]
[1753839745017,124.0,181.41,181.32,2.99]
[1753839745018,2.71166417,181.4,181.32,5.70166417]
[1753839745318,5.5148,181.37,181.35,2.99]
[1753839745509,8.6848,181.37,181.36,2.99]
[1753839747116,3.17,181.37,181.36,2.99]
[1753839747612,3.17,181.37,181.34,5.70166417]
[1753839747916,3.17,181.4,181.34,5.70166417]
[1753839748614,2.71166417,181.4,181.32,2.99]
[1753839748814,2.71166417,181.4,181.18,12.40893676]
[1753839748815,3.17,181.35,181.29,2.99]
[1753839749211,3.17,181.29,181.27,2.99]
[1753839749411,5.5168,181.3,181.28,6.45942933]
[1753839749612,3.17,181.31,181.29,2.99]
[1753839749818,8.6864,181.31,181.3,2.99]
[1753839750217,3.17,181.35,181.29,2.99]
[1753839750513,8.6859,181.33,181.29,2.99]
[1753839750915,3.17,181.35,181.29,2.99]
[1753839751717,5.5163,181.31,181.28,2.71166417]
[1753839751918,8.6863,181.31,181.3,2.99]
[1753839752418,3.17,181.31,181.27,2.99]
[1753839752616,3.17,181.31,181.26,2.99]
[1753839752821,3.17,181.3,181.26,2.99]
[1753839753119,3.17,181.3,181.28,2.99]
[1753839753321,3.17,181.3,181.29,2.99]
[1753839754322,8.6866,181.3,181.29,2.99]
[1753839754523,3.17,181.32,181.29,2.99]
[1753839754716,3.17,181.31,181.3,2.99]
[1753839755421,8.6864,181.31,181.3,2.99]
[1753839755619,3.17,181.31,181.25,2.71166417]
[1753839755822,3.17,181.32,181.26,3.47015253]
[1753839756021,3.17,181.32,181.28,2.99]
[1753839756723,5.5168,181.3,181.28,2.99]
[1753839756917,3.17,181.29,181.28,2.99]
[1753839757317,5.5168,181.3,181.28,2.99]
[1753839757518,8.6868,181.3,181.28,2.99]
[1753839757720,8.6868,181.3,181.29,2.99]
[1753839758116,3.17,181.3,181.2,6.10288245]
[1753839758324,3.17,181.3,181.22,2.71166417]
[1753839758626,8.6879,181.26,181.24,2.99]
[1753839758926,8.6879,181.26,181.25,2.99]
[1753839759127,3.17,181.26,181.25,2.99]
[1753839759624,5.5177,181.27,181.26,2.99]
[1753839759825,2.71166417,181.33,181.26,2.71166417]
[1753839760026,3.17,181.32,181.27,2.99]
[1753839760221,5.5172,181.29,181.27,2.99]
[1753839760428,8.6872,181.29,181.27,2.99]
[1753839761134,3.17,181.28,181.27,2.99]
[1753839761319,8.6872,181.28,181.26,2.71166417]
[1753839761525,3.17,181.32,181.24,2.99]